bitfinex/quotes_BTCUSD_20230906
["timestamp","ask_amount","ask_price","bid_price","bid_amount"]
[1694022699621,3.95208799,25717.0,25716.0,0.02]
[1694022700000,3.97008799,25717.0,25716.0,0.022]
[1694022700810,3.98408799,25717.0,25716.0,0.023]
[1694022701017,3.97008799,25717.0,25716.0,0.022]
[1694022701227,3.97008799,25717.0,25716.0,0.024]
[1694022701228,3.99208799,25717.0,25716.0,0.024]
[1694022701431,3.97208799,25717.0,25716.0,0.024]
[1694022701638,3.81455927,25717.0,25716.0,0.02]
[1694022701849,3.86255927,25717.0,25716.0,0.024]
[1694022702054,3.83855927,25717.0,25716.0,0.022]
[1694022702259,4.20120454,25717.0,25715.0,0.03591699]
[1694022702470,3.83855927,25717.0,25716.0,0.002]
[1694022702680,4.22255927,25717.0,25716.0,0.004]
[1694022703060,4.19855927,25717.0,25716.0,0.002]
[1694022703517,4.22255927,25717.0,25716.0,0.002]
[1694022703694,0.04,25716.0,25715.0,0.03791699]
[1694022703852,4.35507399,25716.0,25715.0,0.03991699]
[1694022704057,3.45982027,25716.0,25715.0,0.03991699]
[1694022704277,2.29545,25716.0,25715.0,0.03791699]
[1694022704485,2.29545,25716.0,25715.0,0.03591699]
[1694022705480,1.59545,25716.0,25715.0,0.03591699]
[1694022705722,1.64345,25716.0,25715.0,0.03991699]
[1694022705930,0.048,25716.0,25715.0,0.03991699]
[1694022706131,0.048,25716.0,25715.0,0.19773154]
[1694022706332,0.048,25716.0,25715.0,0.26345945]
[1694022706979,0.024,25716.0,25715.0,0.26145945]
[1694022707191,0.049,25716.0,25715.0,0.26345945]
[1694022707402,0.024,25716.0,25715.0,0.26145945]
[1694022707613,2.372947,25719.0,25715.0,0.26145945]
[1694022707614,0.77767,25718.0,25715.0,0.25945945]
[1694022707819,0.77767,25718.0,25715.0,0.26045945]
[1694022707820,0.014,25716.0,25715.0,0.26045945]
[1694022708030,0.038,25716.0,25715.0,0.26245945]
[1694022708687,1.555343,25718.0,25715.0,0.25945945]
[1694022708886,1.555343,25718.0,25715.0,0.26345945]
[1694022708887,1.604343,25718.0,25715.0,0.26345945]
[1694022709292,1.8862523,25718.0,25717.0,0.02]
[1694022709500,4.15154357,25718.0,25716.0,0.02]
[1694022709704,0.1614,25717.0,25716.0,0.02]
[1694022709911,3.27218,25717.0,25716.0,0.02]
[1694022710117,3.47044469,25717.0,25716.0,0.02]
[1694022711365,3.47044469,25717.0,25716.0,0.022]
[1694022711577,3.49344469,25717.0,25716.0,0.022]
[1694022711961,3.51744469,25717.0,25716.0,0.024]
[1694022712833,3.31918,25717.0,25716.0,0.024]
[1694022717943,3.70582527,25717.0,25716.0,0.024]
[1694022719179,0.986095,25717.0,25716.0,0.024]
[1694022719651,1.76379,25717.0,25716.0,0.024]
[1694022720155,2.541485,25717.0,25716.0,0.024]
[1694022720635,3.31918,25717.0,25716.0,0.024]
[1694022720889,4.07750187,25717.0,25716.0,0.024]
[1694022721628,3.29980687,25717.0,25716.0,0.024]
[1694022724015,4.07750187,25717.0,25716.0,0.024]
[1694022725417,3.29980687,25717.0,25716.0,0.024]
[1694022727176,4.07750187,25717.0,25716.0,0.024]
[1694022727802,2.541485,25717.0,25716.0,0.024]
[1694022732041,3.31918,25717.0,25716.0,0.024]
[1694022734345,3.70582527,25717.0,25716.0,0.024]
[1694022735437,4.97192082,25717.0,25716.0,0.004]
[1694022735657,4.97192082,25717.0,25715.0,0.0816449]
[1694022735658,0.98,25716.0,25715.0,0.0816449]
[1694022735890,5.35076615,25716.0,25715.0,0.0816449]
[1694022736109,5.39680998,25716.0,25715.0,0.0816449]
[1694022736533,6.28338835,25716.0,25715.0,0.0816449]
[1694022736759,6.28338835,25716.0,25710.0,0.2679]
[1694022736760,0.06,25713.0,25710.0,0.2879]
[1694022736976,0.02,25711.0,25710.0,0.02]
[1694022737212,0.06,25710.0,25709.0,0.01989699]
[1694022737437,2.16385927,25710.0,25709.0,0.01989699]
[1694022737659,2.46385927,25710.0,25709.0,0.01989699]
[1694022737872,4.17545827,25710.0,25709.0,0.01989699]
[1694022738779,4.19945827,25710.0,25709.0,0.02189699]
[1694022738996,4.58610354,25710.0,25709.0,0.02189699]
[1694022739201,5.28610354,25710.0,25709.0,0.02189699]
[1694022740280,4.61010354,25710.0,25709.0,0.02289699]
[1694022743048,4.57000354,25710.0,25709.0,0.02289699]
[1694022743415,5.27000354,25710.0,25709.0,0.02289699]
[1694022746885,5.39130354,25710.0,25709.0,0.02289699]
[1694022749001,4.88335827,25710.0,25709.0,0.02289699]
[1694022750144,4.18335827,25710.0,25709.0,0.02289699]
[1694022755492,6.43335827,25710.0,25709.0,0.02289699]
[1694022756427,6.49436991,25710.0,25709.0,0.02289699]
[1694022758128,7.19436991,25710.0,25709.0,0.02289699]
[1694022758656,7.58101518,25710.0,25709.0,0.02289699]
[1694022762817,7.72231518,25710.0,25709.0,0.02289699]
[1694022768225,7.33566991,25710.0,25709.0,0.02289699]
[1694022768552,7.21436991,25710.0,25709.0,0.02289699]
[1694022768936,7.15335827,25710.0,25709.0,0.02289699]
[1694022769395,7.27465827,25710.0,25709.0,0.02289699]
[1694022769778,0.06,25704.0,25703.0,0.02]
[1694022770039,4.73434838,25704.0,25703.0,0.02]
[1694022770203,5.42099365,25704.0,25703.0,0.02]
[1694022770410,5.26633554,25704.0,25703.0,0.02]
[1694022771068,3.593656,25704.0,25703.0,0.02]
[1694022771257,3.594656,25704.0,25703.0,0.021]
[1694022773185,3.600656,25704.0,25703.0,0.021]
[1694022773616,3.594656,25704.0,25703.0,0.021]
[1694022774039,3.600656,25704.0,25703.0,0.021]
[1694022774487,4.76539027,25704.0,25703.0,0.021]
[1694022775165,5.15203554,25704.0,25703.0,0.021]
[1694022776226,5.27333554,25704.0,25703.0,0.021]
[1694022776924,5.26733554,25704.0,25703.0,0.021]
[1694022777572,5.29133554,25704.0,25703.0,0.021]
[1694022778008,5.26733554,25704.0,25703.0,0.021]
[1694022778223,5.27133554,25704.0,25703.0,0.021]
[1694022778429,5.29033554,25704.0,25703.0,0.02]
[1694022778843,5.26633554,25704.0,25703.0,0.02]
[1694022779065,5.31433554,25704.0,25703.0,0.02]
[1694022779278,5.29033554,25704.0,25703.0,0.02]
[1694022779749,5.31433554,25704.0,25703.0,0.02]
[1694022780164,4.80639027,25704.0,25703.0,0.02]
[1694022780828,3.641656,25704.0,25703.0,0.02]
[1694022781893,3.621656,25704.0,25703.0,0.02]
[1694022782774,3.281656,25704.0,25703.0,0.02]
[1694022782999,1.725478,25704.0,25703.0,0.16558028]
[1694022783839,2.503567,25704.0,25703.0,0.16558028]
[1694022784476,1.725478,25704.0,25703.0,0.16558028]
[1694022784744,2.503567,25704.0,25703.0,0.16558028]
[1694022785361,2.503567,25704.0,25703.0,0.02]
[1694022786039,0.048,25704.0,25703.0,0.71187519]
[1694022786256,0.048,25704.0,25703.0,0.83317519]
[1694022786471,0.048,25704.0,25703.0,2.35297822]
[1694022786707,0.048,25704.0,25703.0,4.01506979]
[1694022786933,0.024,25704.0,25703.0,4.00126979]
[1694022787135,0.024,25704.0,25703.0,4.00540979]
[1694022787363,0.039,25704.0,25703.0,4.00336979]
[1694022787574,0.039,25704.0,25703.0,4.00498979]
[1694022787786,0.024,25704.0,25703.0,4.01218979]
[1694022788006,0.024,25704.0,25703.0,4.01170979]
[1694022788238,3.027918,25710.0,25709.0,0.02]
[1694022788239,2.25,25710.0,25709.0,0.02]
[1694022788511,0.40418535,25717.0,25709.0,0.02]
[1694022788512,0.7773,25731.0,25729.0,0.02]
[1694022788731,0.22632352,25734.0,25733.0,0.02]
[1694022789005,0.0197,25735.0,25734.0,0.12]
[1694022789006,0.25235461,25735.0,25734.0,0.12]
[1694022789216,0.0197,25735.0,25734.0,0.2917237]
[1694022789444,0.0197,25741.0,25740.0,0.06]
[1694022789664,0.0197,25741.0,25740.0,0.1813]
[1694022790570,0.0197,25741.0,25740.0,0.62794527]
[1694022791030,0.2544885,25741.0,25740.0,0.69988527]
[1694022791238,0.2544885,25741.0,25740.0,2.00818261]
[1694022791447,0.2544885,25741.0,25740.0,2.00746261]
[1694022791676,0.2544885,25741.0,25740.0,1.99960261]
[1694022791904,0.2584885,25741.0,25740.0,1.96176261]
[1694022793111,0.2584885,25741.0,25740.0,2.00156261]
[1694022793290,0.0237,25741.0,25740.0,2.58452261]
[1694022793503,0.0237,25741.0,25740.0,3.70346261]
[1694022793710,0.0237,25741.0,25740.0,3.70352261]
[1694022793928,0.0237,25741.0,25740.0,3.70478261]
[1694022794165,0.0237,25741.0,25740.0,4.66814261]
[1694022794351,0.0237,25741.0,25740.0,4.80998261]
[1694022794565,0.0237,25741.0,25740.0,2.92160261]
[1694022794784,0.0237,25741.0,25740.0,4.48836825]
[1694022794993,0.0237,25741.0,25740.0,4.48926825]
[1694022795233,0.0237,25741.0,25740.0,4.48884825]
[1694022795442,0.0197,25743.0,25742.0,0.55142564]
[1694022795647,0.0197,25743.0,25742.0,0.54627091]
[1694022795864,0.0197,25743.0,25742.0,1.66702438]
[1694022796297,0.0197,25743.0,25742.0,1.709884]
[1694022796736,0.0197,25743.0,25742.0,1.870984]
[1694022796967,0.0197,25743.0,25742.0,0.98329093]
[1694022797144,0.0197,25743.0,25742.0,0.75023053]
[1694022797609,0.0197,25743.0,25742.0,1.87083211]
[1694022797831,0.0197,25743.0,25742.0,0.75023053]
[1694022798042,0.0237,25743.0,25742.0,0.79923053]
[1694022798499,0.0217,25743.0,25742.0,0.77523053]
[1694022798746,0.0217,25743.0,25742.0,0.89468358]
[1694022798965,0.0217,25743.0,25742.0,1.75086358]
[1694022799179,0.0217,25743.0,25742.0,2.11526163]
[1694022799426,0.0237,25743.0,25742.0,2.92988947]
[1694022799611,0.0217,25743.0,25742.0,2.78105642]
[1694022799824,0.0217,25743.0,25742.0,1.99637642]
[1694022800092,0.0217,25743.0,25742.0,0.87737053]
[1694022800308,0.0217,25743.0,25742.0,0.87731053]
[1694022800522,0.0217,25743.0,25742.0,0.61413053]
[1694022800734,0.0197,25743.0,25742.0,0.58913053]
[1694022800950,1.03292771,25743.0,25742.0,0.10748526]
[1694022801169,2.35443,25743.0,25742.0,0.13148526]
[1694022801379,2.35243,25743.0,25742.0,0.10748526]
[1694022801591,2.35243,25743.0,25742.0,0.10648526]
[1694022801819,2.6834729,25743.0,25742.0,0.13148526]
[1694022802016,2.6834729,25743.0,25742.0,0.10748526]
[1694022802017,0.0217,25743.0,25742.0,0.10748526]
[1694022802245,0.0217,25743.0,25742.0,0.11348526]
[1694022802246,0.0227,25743.0,25742.0,0.11348526]
[1694022802460,0.0217,25743.0,25742.0,0.53413053]
[1694022802888,0.0227,25743.0,25742.0,0.54013053]
[1694022803319,0.0207,25743.0,25742.0,0.97527358]
[1694022803527,0.0237,25743.0,25742.0,1.63705053]
[1694022803749,0.0237,25743.0,25742.0,0.85711053]
[1694022803970,0.0237,25743.0,25742.0,0.77923053]
[1694022803971,0.0207,25743.0,25742.0,0.77923053]
[1694022804176,0.0197,25743.0,25742.0,0.89029053]
[1694022804392,0.0217,25743.0,25742.0,1.20903053]
[1694022804831,0.0217,25743.0,25742.0,0.79723053]
[1694022805045,0.0217,25743.0,25742.0,0.89001558]
[1694022805301,0.0217,25743.0,25742.0,1.28143053]
[1694022805507,0.0237,25743.0,25742.0,0.82223053]
[1694022805720,0.0217,25743.0,25742.0,0.79823053]
[1694022805953,0.0217,25743.0,25742.0,2.81115683]
[1694022806155,0.0237,25743.0,25742.0,3.61053683]
[1694022806377,0.0217,25743.0,25742.0,3.90826685]
[1694022806587,0.0217,25743.0,25742.0,3.56163683]
[1694022806804,0.0237,25743.0,25742.0,4.36339683]
[1694022807016,0.0237,25743.0,25742.0,3.64641683]
[1694022807236,0.0237,25743.0,25742.0,3.64467683]
[1694022807451,0.0237,25743.0,25742.0,5.7573021]
[1694022807708,0.0237,25743.0,25742.0,5.7096621]
[1694022807976,0.0237,25743.0,25742.0,5.7175821]
[1694022808143,0.0237,25743.0,25742.0,5.7232221]
[1694022808354,0.0217,25743.0,25742.0,5.7201021]
[1694022808585,0.0217,25743.0,25742.0,5.7430621]
[1694022808780,0.0197,25749.0,25748.0,0.03962564]
[1694022809025,0.0197,25749.0,25748.0,0.50627091]
[1694022809223,0.27517965,25749.0,25748.0,0.50627091]
[1694022809893,0.0197,25752.0,25751.0,0.97629364]
[1694022810105,0.0197,25752.0,25751.0,2.96442964]
[1694022810326,0.0197,25752.0,25751.0,4.08259089]
[1694022810541,0.0197,25752.0,25751.0,1.86206589]
[1694022811008,0.0197,25752.0,25751.0,1.70661489]
[1694022811230,0.0197,25752.0,25751.0,4.26099109]
[1694022811445,0.1611,25762.0,25751.0,2.66867745]
[1694022811683,1.912655,25759.0,25756.0,0.01962564]
[1694022811900,3.26718336,25759.0,25753.0,0.01962564]
[1694022812116,2.329572,25756.0,25754.0,1.1202115]
[1694022812344,0.00037436,25753.0,25748.0,0.01962564]
[1694022812556,3.26121011,25752.0,25749.0,0.01962564]
[1694022812764,3.26121011,25752.0,25748.0,0.01962564]
[1694022812969,3.26121011,25752.0,25750.0,0.01962564]
[1694022813231,3.106552,25752.0,25751.0,1.12032107]
[1694022813387,3.106552,25752.0,25751.0,1.12072107]
[1694022813611,3.106552,25752.0,25751.0,0.89572107]
[1694022813821,3.106552,25752.0,25751.0,0.85072107]
[1694022814028,3.108552,25752.0,25750.0,0.02062564]
[1694022814284,2.335914,25752.0,25750.0,0.02062564]
[1694022814454,0.22528332,25751.0,25750.0,0.01962564]
[1694022814662,1.77861932,25751.0,25750.0,0.01962564]
[1694022815081,1.00195132,25751.0,25750.0,0.01962564]
[1694022815416,0.22528332,25751.0,25750.0,0.40627091]
[1694022815547,0.22528332,25751.0,25750.0,0.65377091]
[1694022815758,0.22528332,25751.0,25750.0,0.608998]
[1694022816264,0.22528332,25751.0,25750.0,0.447898]
[1694022816526,0.22528332,25751.0,25750.0,0.40727091]
[1694022817007,0.22528332,25751.0,25750.0,0.40827091]
[1694022817222,0.22528332,25751.0,25750.0,0.41627091]
[1694022817432,1.00195132,25751.0,25750.0,0.41627091]
[1694022818111,2.54400034,25751.0,25750.0,0.02962564]
[1694022818982,2.330004,25751.0,25750.0,0.01]
[1694022819217,2.330004,25751.0,25750.0,0.02962564]
[1694022819218,2.56480423,25751.0,25750.0,0.02962564]
[1694022819654,2.330004,25751.0,25750.0,0.02962564]
[1694022820369,0.29829179,25751.0,25750.0,0.41627091]
[1694022820602,0.24476163,25756.0,25755.0,0.01962564]
[1694022820808,1.552898,25759.0,25757.0,0.01962564]
[1694022821029,0.776459,25758.0,25757.0,0.40627091]
[1694022821245,1.552918,25758.0,25757.0,0.40627091]
[1694022821676,1.552918,25758.0,25757.0,0.01962564]
[1694022821935,2.329377,25758.0,25757.0,0.01962564]
[1694022822364,2.329377,25758.0,25751.0,0.80965179]
[1694022822365,0.25954023,25757.0,25756.0,0.01962564]
[1694022822580,1.81251423,25757.0,25756.0,0.01962564]
[1694022822803,1.81251423,25757.0,25755.0,0.01962564]
[1694022823055,1.81251423,25757.0,25756.0,0.40627091]
[1694022823056,0.2869617,25757.0,25756.0,0.40627091]
[1694022823264,0.2869617,25757.0,25756.0,0.447098]
[1694022823474,0.2869617,25757.0,25756.0,0.38664527]
[1694022823691,0.2869617,25757.0,25755.0,0.002]
[1694022823692,1.552974,25757.0,25755.0,0.02162564]
[1694022823923,0.776451,25759.0,25757.0,0.01962564]
[1694022824139,0.2057,25762.0,25759.0,0.01962564]
[1694022824387,0.2057,25762.0,25760.0,0.40627091]
[1694022824388,1.552687,25762.0,25760.0,0.40627091]
[1694022824596,2.329037,25762.0,25760.0,0.01962564]
[1694022825024,2.72556914,25762.0,25756.0,0.01962564]
[1694022825237,0.15465811,25761.0,25757.0,0.001]
[1694022825454,1.552794,25760.0,25758.0,0.01962564]
[1694022825923,2.329191,25760.0,25758.0,0.01962564]
[1694022826084,0.001,25759.0,25758.0,0.01962564]
[1694022826289,0.001,25759.0,25757.0,0.02262564]
[1694022826290,2.330281,25759.0,25757.0,0.02262564]
[1694022826504,2.330281,25759.0,25758.0,0.01962564]
[1694022826714,0.23046861,25761.0,25758.0,0.40627091]
[1694022826974,0.001,25760.0,25759.0,0.38664527]
[1694022827158,0.001,25760.0,25759.0,0.40627091]
[1694022827375,0.0197,25765.0,25764.0,0.13962564]
[1694022827597,0.0197,25765.0,25764.0,1.83584691]
[1694022827812,0.0197,25765.0,25764.0,0.40627091]
[1694022828242,0.0197,25765.0,25764.0,0.452898]
[1694022828520,0.0197,25765.0,25761.0,0.01962564]
[1694022828521,1.572192,25765.0,25761.0,0.01962564]
[1694022828784,1.572192,25765.0,25759.0,0.01962564]
[1694022828785,0.15465811,25764.0,25759.0,0.01962564]
[1694022829095,0.15465811,25764.0,25754.0,1.19970416]
[1694022829096,0.15465811,25763.0,25761.0,0.01962564]
[1694022829322,1.552674,25762.0,25761.0,0.01962564]
[1694022829568,0.776324,25763.0,25761.0,0.01962564]
[1694022829853,0.776337,25762.0,25756.0,0.01962564]
[1694022830135,0.15465811,25761.0,25760.0,0.01962564]
[1694022830368,1.5121693,25761.0,25760.0,0.01962564]
[1694022830922,2.2885363,25761.0,25760.0,0.01962564]
[1694022831180,0.77638,25761.0,25760.0,0.01962564]
[1694022831658,0.776367,25761.0,25760.0,0.40627091]
[1694022831662,0.0147,25765.0,25761.0,0.01962564]
[1694022831927,0.0147,25765.0,25764.0,0.81807091]
[1694022832243,0.0147,25765.0,25764.0,0.40627091]
[1694022832995,0.2830481,25765.0,25764.0,0.40627091]
[1694022833214,0.0147,25765.0,25764.0,0.40627091]
[1694022833429,0.790946,25765.0,25764.0,0.40627091]
[1694022833646,1.567192,25765.0,25764.0,0.38864527]
[1694022833861,0.22794619,25765.0,25764.0,0.39564527]
[1694022834082,0.0147,25765.0,25764.0,0.44513544]
[1694022834332,0.0147,25765.0,25764.0,0.45027091]
[1694022834534,0.0147,25765.0,25764.0,0.42527091]
[1694022834966,0.26886626,25765.0,25764.0,0.42727091]
[1694022835194,0.26886626,25765.0,25764.0,0.96671091]
[1694022835195,0.29312281,25765.0,25764.0,0.96671091]
[1694022835477,0.29312281,25765.0,25764.0,1.72270691]
[1694022835764,0.29312281,25765.0,25764.0,1.72480691]
[1694022836012,0.29312281,25765.0,25764.0,1.70610691]
[1694022836273,0.29312281,25765.0,25764.0,0.93087091]
[1694022836490,0.29312281,25765.0,25764.0,0.91491091]
[1694022836703,0.0147,25765.0,25764.0,0.90857091]
[1694022836917,0.0147,25765.0,25764.0,0.42527091]
[1694022837149,0.277578,25765.0,25764.0,0.42527091]
[1694022837359,0.0147,25765.0,25764.0,0.42527091]
[1694022837570,0.0147,25765.0,25764.0,0.45027091]
[1694022837997,0.0147,25765.0,25764.0,0.509122]
[1694022838453,0.0147,25765.0,25764.0,0.45027091]
[1694022838664,0.23691404,25765.0,25764.0,0.45027091]
[1694022839316,0.0147,25765.0,25764.0,0.45027091]
[1694022839527,1.567192,25765.0,25764.0,0.45027091]
[1694022839735,1.567192,25765.0,25764.0,0.06362564]
[1694022839949,0.790946,25765.0,25764.0,0.06362564]
[1694022840160,1.567192,25765.0,25764.0,0.06362564]
[1694022841053,0.790946,25765.0,25764.0,0.06362564]
[1694022841477,0.29494065,25765.0,25764.0,0.06362564]
[1694022843108,0.29494065,25765.0,25764.0,0.45027091]
[1694022843958,0.29494065,25765.0,25764.0,0.495298]
[1694022844166,0.0147,25765.0,25764.0,2.04785]
[1694022844389,0.0147,25765.0,25764.0,3.910426]
[1694022844613,0.0147,25765.0,25764.0,4.039046]
[1694022844832,0.0147,25765.0,25764.0,3.45365]
[1694022845032,0.0147,25765.0,25764.0,3.45923]
[1694022845231,0.0147,25765.0,25764.0,4.230346]
[1694022845455,0.0147,25765.0,25764.0,4.237726]
[1694022845689,0.0147,25765.0,25764.0,4.237006]
[1694022845854,0.0147,25765.0,25764.0,4.215446]
[1694022846117,0.0147,25765.0,25764.0,4.195686]
[1694022846313,0.0147,25765.0,25764.0,4.224286]
[1694022846521,0.02002,25767.0,25766.0,0.61142564]
[1694022846740,0.02002,25767.0,25766.0,5.24813018]
[1694022846897,0.02002,25767.0,25766.0,5.57105018]
[1694022847116,0.02002,25767.0,25766.0,5.60369018]
[1694022847320,0.02002,25767.0,25766.0,5.61761018]
[1694022847600,0.01992,25772.0,25771.0,0.61142564]
[1694022847817,0.01992,25772.0,25771.0,4.48647747]
[1694022848031,0.01992,25772.0,25771.0,3.95191147]
[1694022848253,0.01992,25772.0,25771.0,0.40627091]
[1694022848469,0.01992,25772.0,25771.0,0.55297091]
[1694022848673,0.01992,25772.0,25771.0,2.15246291]
[1694022848875,0.01992,25772.0,25771.0,2.17860291]
[1694022849089,0.01992,25772.0,25771.0,2.64294954]
[1694022849319,0.01992,25772.0,25771.0,1.51015091]
[1694022849535,0.01992,25772.0,25771.0,1.00295091]
[1694022849787,0.01992,25772.0,25771.0,1.95213091]
[1694022849999,0.01992,25772.0,25771.0,2.65686291]
[1694022850230,0.01992,25772.0,25771.0,2.69314291]
[1694022850437,0.01992,25772.0,25771.0,4.44484263]
[1694022850644,0.01992,25772.0,25771.0,4.39936263]
[1694022850873,0.01992,25772.0,25771.0,4.49496263]
[1694022851120,0.01992,25772.0,25771.0,4.47712263]
[1694022851340,0.01992,25772.0,25771.0,4.47532263]
[1694022851557,0.01992,25772.0,25771.0,4.51192263]
[1694022851791,0.01992,25772.0,25771.0,4.72920263]
[1694022852009,0.1,25775.0,25774.0,0.61142564]
[1694022852250,0.1,25775.0,25774.0,4.05163847]
[1694022852470,0.1,25775.0,25774.0,4.65957847]
[1694022852686,0.1,25775.0,25774.0,5.58544247]
[1694022852907,0.01983,25786.0,25785.0,0.11962564]
[1694022853142,0.00014752,25788.0,25785.0,0.11962564]
[1694022853143,0.00014752,25788.0,25787.0,0.19962564]
[1694022853383,1.07172685,25801.0,25787.0,0.19962564]
[1694022853384,0.775154,25802.0,25801.0,0.01962564]
[1694022853658,0.22398552,25805.0,25801.0,0.01962564]
[1694022853659,0.34156441,25816.0,25810.0,0.02]
[1694022853901,0.54378697,25829.0,25824.0,0.01962564]
[1694022854109,0.00107769,25833.0,25832.0,0.01581083]
[1694022854347,0.00107769,25833.0,25832.0,0.83304383]
[1694022854582,0.29395971,25836.0,25832.0,0.5068]
[1694022854813,0.05664888,25833.0,25828.0,0.01581083]
[1694022855038,0.04745971,25826.0,25824.0,0.06894]
[1694022855277,0.06745971,25820.0,25819.0,0.08064]
[1694022855527,0.04245971,25811.0,25806.0,0.10092]
[1694022855768,0.15465811,25810.0,25807.0,0.52761083]
[1694022855993,0.1516,25831.0,25824.0,0.04]
[1694022856266,0.1516,25831.0,25810.0,0.06]
[1694022856267,1.755923,25827.0,25810.0,0.06]
[1694022856482,1.755923,25827.0,25821.0,0.06]
[1694022856483,2.323149,25827.0,25821.0,0.06]
[1694022856914,0.24478215,25826.0,25822.0,0.04245972]
[1694022857171,1.015883,25827.0,25822.0,0.04245972]
[1694022857381,1.015883,25827.0,25816.0,0.06]
[1694022857382,0.774417,25826.0,25816.0,0.06]
[1694022857588,0.774417,25826.0,25812.0,0.06]
[1694022857589,0.2415,25816.0,25812.0,0.06]
[1694022857815,0.2415,25813.0,25805.0,0.07008]
[1694022858023,1.54975,25811.0,25806.0,0.06]
[1694022858253,0.45555811,25810.0,25807.0,0.06]
[1694022858521,1.549846,25809.0,25802.0,0.1005]
[1694022858808,0.3009,25807.0,25802.0,0.1005]
[1694022858977,2.47974211,25806.0,25803.0,0.06]
[1694022859222,2.75780632,25806.0,25803.0,0.06]
[1694022859432,2.47974211,25806.0,25803.0,0.06]
[1694022859635,2.325084,25806.0,25803.0,0.06]
[1694022860288,0.15465811,25805.0,25799.0,0.56]
[1694022860499,0.15465811,25805.0,25794.0,0.04]
[1694022860500,0.3009,25800.0,25794.0,0.04]
[1694022860715,0.3009,25800.0,25789.0,0.019796]
[1694022860716,0.3009,25795.0,25789.0,0.019796]
[1694022860972,1.70545411,25794.0,25791.0,0.06]
[1694022861147,1.70545411,25794.0,25789.0,0.519796]
[1694022861148,0.3009,25792.0,25789.0,0.079796]
[1694022861416,1.70558611,25791.0,25789.0,0.099796]
[1694022861626,0.29378919,25793.0,25792.0,0.16]
[1694022861861,0.29378919,25793.0,25792.0,0.6513098]
[1694022862072,0.2604,25799.0,25798.0,0.16]
[1694022862293,0.2604,25799.0,25798.0,0.58910499]
[1694022862763,0.012,25800.0,25798.0,0.48910499]
[1694022862981,0.1539,25804.0,25803.0,0.74]
[1694022863198,0.1539,25804.0,25803.0,1.25310499]
[1694022863402,0.1539,25804.0,25803.0,1.23900499]
[1694022863639,0.44546855,25804.0,25803.0,1.24668499]
[1694022863844,0.44546855,25804.0,25803.0,1.20800527]
[1694022864128,0.1539,25804.0,25803.0,2.40594827]
[1694022864274,0.1539,25804.0,25803.0,2.42424827]
[1694022864500,0.2705,25809.0,25807.0,0.66]
[1694022864501,0.23796291,25808.0,25807.0,0.66]
[1694022864718,0.23796291,25808.0,25807.0,1.08910499]
[1694022864937,0.23796291,25808.0,25807.0,1.04664527]
[1694022865164,0.2705,25809.0,25808.0,0.16]
[1694022865363,0.2705,25809.0,25808.0,0.54664527]
[1694022865575,0.2705,25809.0,25808.0,0.6713098]
[1694022865789,0.2705,25809.0,25808.0,0.66138527]
[1694022865995,0.5180946,25809.0,25808.0,0.56664527]
[1694022866457,0.5180946,25809.0,25808.0,0.64206527]
[1694022866661,0.5180946,25809.0,25808.0,0.63924527]
[1694022866890,0.165,25815.0,25814.0,0.1566692]
[1694022867112,0.0033308,25828.0,25823.0,0.02]
[1694022867113,0.774378,25828.0,25823.0,0.02]
[1694022867343,0.774378,25828.0,25825.0,0.02]
[1694022867344,0.774391,25827.0,25825.0,0.02]
[1694022867572,0.77444,25826.0,25823.0,0.02]
[1694022867799,0.774391,25827.0,25825.0,0.02]
[1694022868015,0.774391,25827.0,25826.0,0.04245972]
[1694022868242,0.774328,25829.0,25826.0,0.42910499]
[1694022868459,1.548562,25831.0,25830.0,0.1]
[1694022868672,0.774273,25831.0,25830.0,0.14245972]
[1694022868888,0.4163,25833.0,25832.0,0.52]
[1694022869416,0.4163,25833.0,25832.0,1.02910499]
[1694022869417,0.4163,25833.0,25830.0,0.02]
[1694022869564,2.50434018,25833.0,25826.0,0.52]
[1694022869830,0.3009,25831.0,25826.0,0.5]
[1694022870053,0.3049,25827.0,25826.0,0.518049]
[1694022870271,2.00832411,25827.0,25826.0,0.498049]
[1694022870499,3.16535238,25827.0,25821.0,0.06]
[1694022870711,2.323149,25827.0,25826.0,0.002]
[1694022870940,3.73723677,25827.0,25821.0,0.06]
[1694022871156,3.08070711,25827.0,25825.0,0.001]
[1694022871404,2.926049,25827.0,25825.0,0.001]
[1694022871620,2.926049,25827.0,25821.0,0.06]
[1694022871621,1.548766,25827.0,25823.0,0.02]
[1694022871820,2.00432411,25827.0,25823.0,0.02]
[1694022872040,0.74194918,25826.0,25823.0,0.02]
[1694022872266,2.323329,25825.0,25823.0,0.02]
[1694022872488,2.323329,25825.0,25822.0,0.498049]
[1694022872714,3.097772,25825.0,25822.0,0.498049]
[1694022872949,3.48441727,25825.0,25822.0,0.498049]
[1694022873165,3.48441727,25825.0,25819.0,0.08]
[1694022873166,0.3009,25823.0,25819.0,0.518049]
[1694022873387,2.323617,25822.0,25819.0,0.518049]
[1694022873616,0.3009,25820.0,25814.0,0.02]
[1694022873837,0.3009,25820.0,25816.0,0.558049]
[1694022873838,2.323941,25819.0,25816.0,0.558049]
[1694022874060,3.098588,25819.0,25816.0,0.558049]
[1694022874292,0.774647,25819.0,25816.0,0.558049]
[1694022874722,1.549294,25819.0,25816.0,0.558049]
[1694022874965,0.28209884,25818.0,25816.0,0.558049]
[1694022875187,0.774683,25817.0,25816.0,0.558049]
[1694022875916,0.28209884,25818.0,25816.0,0.638049]
[1694022876132,0.28209884,25818.0,25817.0,0.06]
[1694022876567,1.05675184,25818.0,25817.0,0.06]
[1694022877025,1.83140484,25818.0,25817.0,0.06]
[1694022877246,0.28309884,25818.0,25817.0,0.06]
[1694022877680,0.774628,25819.0,25817.0,0.06]
[1694022877681,0.29180273,25821.0,25820.0,0.14]
[1694022877892,0.2569,25823.0,25822.0,0.498049]
[1694022878111,2.0185649,25823.0,25822.0,0.558049]
[1694022878328,2.7930909,25823.0,25822.0,0.558049]
[1694022878540,1.31957918,25823.0,25822.0,0.498049]